Cogmind - Beta 15 @@@ ROGUE MODE // 2025.05.05 @ 23:46:10 Player: surprisinglarge Result: Self-destructed Performance ------------- Evolutions (1) 500 Regions Visited (4) 800 Robots Destroyed (30) 150 Value Destroyed (1002) 1002 Prototype IDs (0) 0 Alien Tech Used (0) 0 Bonus (0) 0 TOTAL SCORE: 2452 Bonus ------- None Cogmind --------- Core Integrity 117/400 Matter 176/300 Energy 73/100 System Corruption 0% Temperature Cool (0) Movement Core (150) Ox2 Location -9/Storage Parts ------- > --- POWER (1) -------- (None) > --- PROPULSION (3) --- (None) > --- UTILITY (3) ------ Heat Sink Small Storage Unit > --- WEAPON (2) ------- Heavy Assault Rifle > --- INVENTORY (8) ---- Rocket Launcher Peak State ------------ > --- POWER ------------ Ion Engine > --- PROPULSION ------- Aluminum Leg Carbon-fiber Leg > --- UTILITY ---------- Small Storage Unit Targeting Computer Core Shielding > --- WEAPON ----------- Shotgun Shotgun > --- INVENTORY -------- Pulse Rifle Pulse Rifle [Rating: 12] Favorites ----------- Power Light Ion Engine Engine Light Ion Engine Propulsion Aluminum Leg Leg Aluminum Leg Utility Small Storage Unit Device Terrain Scanner Storage Small Storage Unit Processor Targeting Computer Protection Core Shielding Weapon Shotgun Energy Gun Pulse Rifle Ballistic Gun Shotgun Ballistic Cannon Improved Light Cannon Special Weapon Mining Laser Build | -11 -10 -10 -9 -9 ------- Run | Yrd Mat Min Mat Sto Slots Evolved 2 | . . . 2 . Power . | . . . . . Propulsion 1 | . . . 1 . Utility 1 | . . . 1 . Weapon . | . . . . . Parts Attached 25 | 6 1 2 8 8 Power 4 | 1 . . 2 1 Engine 4 | 1 . . 2 1 Core . | . . . . . Reactor . | . . . . . Propulsion 6 | 2 . . 3 1 Treads . | . . . . . Leg 6 | 2 . . 3 1 Wheel . | . . . . . Hover . | . . . . . Flight . | . . . . . Utility 5 | 1 1 1 1 1 Device 2 | . 1 . . 1 Storage 1 | 1 . . . . Processor 1 | . . . 1 . Hackware . | . . . . . Protection 1 | . . 1 . . Artifact . | . . . . . Weapon 10 | 2 . 1 2 5 Energy Gun 2 | . . . . 2 Energy Cannon . | . . . . . Ballistic Gun 5 | 2 . . 2 1 Ballistic Cannon 2 | . . . . 2 Launcher . | . . . . . Special Weapon 1 | . . 1 . . Impact Weapon . | . . . . . Slashing Weapon . | . . . . . Piercing Weapon . | . . . . . Special Melee Weapon . | . . . . . Unidentified Prototypes . | . . . . . Parts Lost 18 | . 1 6 2 9 Power 2 | . . 1 . 1 Propulsion 6 | . . 2 1 3 Utility 3 | . 1 . 1 1 Weapon 7 | . . 3 . 4 Highest Loss Streak 8 | . 1 3 1 8 To Critical Strikes . | . . . . . Average Backups 1 | . . . 1 3 Power . | . . . . . Propulsion . | . . . . . Utility . | . . . . . Weapon 1 | . . . 1 3 Tool/Special . | . . . . . Unused Backups 1 | . . . . 1 Power . | . . . . . Propulsion . | . . . . . Utility . | . . . . . Weapon 1 | . . . . 1 Tool/Special . | . . . . . Average Slot Usage (%) 76 | . 92 85 69 63 Engine 9 | . 14 10 6 9 Leg 20 | . 28 26 16 13 Device 1 | . 7 . . 2 Storage 12 | . 14 14 11 11 Processor 4 | . . . 8 6 Protection 5 | . . 10 7 . Energy Gun 2 | . . . . 10 Ballistic Gun 15 | . 28 11 20 2 Ballistic Cannon 1 | . . . . 8 Special Weapon 2 | . . 11 . . Peak Build Rating 12 | 6 7 7 12 11 Average Rating 8 | 4 6 6 9 9 On Entrance 4 | . 6 6 2 10 Naked Turns . | . . . . . Heaviest Build 20 | 11 12 12 17 20 Greatest Support 25 | 20 20 20 25 20 Greatest Overweight (x) 6 | . . . 1 6 Average Overweight (x) . | . . . . . Largest Inventory Capacity 8 | 8 8 8 8 8 Average Capacity 7 | 6 8 8 8 8 Most Carried 5 | 3 1 2 5 5 Average Carried 1 | . . . 1 2 Final Capacity 8 | 8 8 8 8 8 Final Carried 5 | . . 1 5 1 Class Distribution -------------------- 100% | Mutant Dominant Class ---------------- Mutant | -10/Materials Mutant | -10/Mines Mutant | -9/Materials Mutant | -9/Storage Resources | -11 -10 -10 -9 -9 ----------- Run | Yrd Mat Min Mat Sto Matter Collected 753 | 201 84 107 252 109 Remotely . | . . . . . Salvage Created 1025 | . 188 48 456 333 Parts 71 | . 18 . 29 24 Haulers Intercepted . | . . . . . Recyclers Shooed . | . . . . . Parts Field Recycled . | . . . . . Retrieved Matter . | . . . . . Parts Self-Destructed . | . . . . . Prevented . | . . . . . Kills | -11 -10 -10 -9 -9 ------- Run | Yrd Mat Min Mat Sto Combat Hostiles Destroyed 28 | . 6 2 11 9 Guns 23 | . 6 . 11 6 Cannons 5 | . . 2 . 3 Classes Destroyed 4 | . 3 . 1 . Builder 2 | . 1 . . 1 Swarmer 4 | . 3 . 1 . Grunt 14 | . 3 2 6 3 Sentry 10 | . . . 4 6 Best Kill Streak 6 | . 6 2 4 3 Combat Bots Only 6 | . 6 2 4 3 Max Kills in Single Turn 2 | . 1 1 2 1 Gunslinging 1 | . . . 1 . Exploded . | . . . . . Melee . | . . . . . Uniques/NPCs Destroyed . | . . . . . Combat | -11 -10 -10 -9 -9 -------- Run | Yrd Mat Min Mat Sto Hostile Shots Fired 272 | . 55 52 64 101 Missed 98 | . 22 18 24 34 Hits 174 | . 33 34 40 67 Melee 3 | . . . . 3 Projectile 171 | . 33 34 40 64 AOE 1 | . . . . 1 Critical Strikes 8 | . . 1 2 5 Damage Taken 2301 | . 401 399 516 985 Core 528 | . 145 100 123 160 Absorbed by Shields . | . . . . . Redirected to Shielding 35 | . . 16 19 . Core Remaining (%) 51 | 100 . 2 . . Volleys Fired 102 | . 22 8 27 45 Largest 2 | . 2 2 2 2 Hottest 100 | . 40 100 46 96 Shots Fired 188 | . 44 10 54 80 Gun 148 | . 44 5 54 45 Cannon 35 | . . . . 35 Launcher . | . . . . . Special 5 | . . 5 . . Kinetic 146 | . 44 5 54 43 Thermal 42 | . . 5 . 37 Explosive . | . . . . . Electromagnetic . | . . . . . Robot Hit Streak 12 | . 7 7 10 12 Robot Miss Streak 10 | . 5 1 10 3 Penetration Max . | . . . . . Secondary Targets 5 | . 2 . 3 . Max Gunslinging Chain 1 | . 1 . 1 . Shots Hit Robots 122 | . 24 8 35 55 Core Hits 58 | . 12 8 23 15 Critical Kills . | . . . . . Critical Parts Destroyed 1 | . . . 1 . Critical Strikes 2 | . . . 1 1 Burn 1 | . . . . 1 Destroy 1 | . . . 1 . Melee Attacks . | . . . . . Impact . | . . . . . Slashing . | . . . . . Piercing . | . . . . . Sneak Attacks . | . . . . . Combat Hostiles . | . . . . . Follow-up Attacks . | . . . . . Damage Inflicted 2003 | . 273 162 545 1023 Guns 1437 | . 270 40 544 583 Cannons 440 | . . . . 440 Explosions . | . . . . . Melee . | . . . . . Ramming 30 | . 3 26 1 . Kinetic 1404 | . 270 40 544 550 Thermal 569 | . . 96 . 473 Explosive . | . . . . . Electromagnetic . | . . . . . Impact . | . . . . . Slashing . | . . . . . Piercing . | . . . . . Highest Corruption . | . . . . . Average Corruption . | . . . . . Corruption Purged . | . . . . . Corruption Blocked . | . . . . . Overload Shots . | . . . . . Overflow Damage . | . . . . . Projectiles . | . . . . . Explosions . | . . . . . Melee . | . . . . . Knockbacks 1 | . . . . 1 Impact . | . . . . . Kinetic 1 | . . . . 1 Secondary . | . . . . . Self-Inflicted Damage 9 | . . 9 . . Shots . | . . . . . Rammed 4 | . . 4 . . Targets Rammed 9 | . 1 7 1 . Kicked 5 | . 1 3 1 . Crushed . | . . . . . Highest Temperature 453 | . 18 30 14 453 Average Temperature 145 | . 9 13 3 196 Received Heat Transfer 888 | . 132 189 207 360 Effects 4 | . . . . 4 Shutdowns 1 | . . . . 1 Damage (major) 3 | . . . . 3 Siege Activations . | . . . . . Martial Activations . | . . . . . Shielding Activations . | . . . . . Robots Disrupted . | . . . . . Combat Hostiles . | . . . . . Robots Corrupted . | . . . . . Combat Hostiles . | . . . . . Parts Fried . | . . . . . Impact Corruptions . | . . . . . Robots Melted . | . . . . . Combat Hostiles . | . . . . . Parts Melted 3 | . . 2 . 1 Heat Transferred 1310 | . . 200 . 1110 Parts Sabotaged . | . . . . . Parts Stolen . | . . . . . Parts Stripped . | . . . . . Power Chain Reactions . | . . . . . Alert | -11 -10 -10 -9 -9 ------- Run | Yrd Mat Min Mat Sto Maximum Alert Level . | . . . . . Low Security (%) 100 | 100 100 100 100 100 Level 1 . | . . . . . Level 2 . | . . . . . Level 3 . | . . . . . Level 4 . | . . . . . Level 5 . | . . . . . High Security . | . . . . . Max Security . | . . . . . Peak Influence 194 | . 120 40 131 194 Initial 55 | . . 31 . 55 Average 43 | . 36 9 21 134 Influence Increases 850 | . 145 51 325 329 Destroy 0b10 Robot/C 560 | . 120 40 220 180 Destroy 0b10 Robot/NC 10 | . 5 . . 5 Destroy Leader 170 | . 20 10 60 80 Destroy Structure 5 | . . 1 . 4 Lose Combat Pursuer 105 | . . . 45 60 Influence Decreases 686 | . 65 131 194 296 Entered New Map 125 | . . 49 . 76 Time Decay 431 | . 55 62 184 130 Lost Part 130 | . 10 20 10 90 Squads Dispatched 5 | . 1 . 1 3 Investigation 3 | . 1 . 1 1 Extermination . | . . . . . Reinforcement . | . . . . . Assault . | . . . . . Garrison 2 | . . . . 2 Intercept . | . . . . . Searches Triggered . | . . . . . Construction Impeded . | . . . . . Haulers Reinforced . | . . . . . Active Scanning Responses . | . . . . . Cargo Convoy Interrupts . | . . . . . Stealth | -11 -10 -10 -9 -9 --------- Run | Yrd Mat Min Mat Sto Distress Signals 2 | . 1 . 1 . Communications Jammed . | . . . . . Distress Signals . | . . . . . Times Spotted 48 | . 9 7 17 15 Peak Tracking Total 6 | . 4 5 4 6 Tactical Retreats 3 | . . . 1 2 Traps | -11 -10 -10 -9 -9 ------- Run | Yrd Mat Min Mat Sto Traps Triggered 3 | . 1 . 1 1 Indirectly . | . . . . . Trap Hack Attempts . | . . . . . Triggered . | . . . . . Disarmed . | . . . . . Reprogrammed . | . . . . . Reused . | . . . . . Traps Extracted . | . . . . . Installed . | . . . . . Triggered . | . . . . . Machines | -11 -10 -10 -9 -9 ---------- Run | Yrd Mat Min Mat Sto Machines Disabled . | . . . . . Max in Single Turn . | . . . . . Machines Repaired . | . . . . . Machines Dismantled . | . . . . . Machines Sabotaged . | . . . . . Overloaded Fab Kills . | . . . . . Hacking | -11 -10 -10 -9 -9 --------- Run | Yrd Mat Min Mat Sto Machines Accessed . | . . . . . Terminals . | . . . . . Fabricators . | . . . . . Repair Stations . | . . . . . Recycling Units . | . . . . . Scanalyzers . | . . . . . Garrison Access . | . . . . . Total Hacks . | . . . . . Successful . | . . . . . Failed . | . . . . . Catastrophic . | . . . . . Database Lockouts . | . . . . . Manual . | . . . . . Terminals . | . . . . . Fabricators . | . . . . . Repair Stations . | . . . . . Recycling Units . | . . . . . Scanalyzers . | . . . . . Garrison Access . | . . . . . Terminal Hacks . | . . . . . Fabricator Hacks . | . . . . . Repair Station Hacks . | . . . . . Recycling Unit Hacks . | . . . . . Scanalyzer . | . . . . . Garrison Access Hacks . | . . . . . Unauthorized Hacks . | . . . . . Terminals . | . . . . . Fabricators . | . . . . . Repair Stations . | . . . . . Recycling Units . | . . . . . Scanalyzers . | . . . . . Garrison Access . | . . . . . Data Cores Recovered . | . . . . . Used . | . . . . . Hacking Detections . | . . . . . Full Trace Events . | . . . . . Feedback Events . | . . . . . Feedback Blocked . | . . . . . Robot Schematics Acquired . | . . . . . Robots Built . | . . . . . Authchips . | . . . . . Time . | . . . . . Total Robot Build Rating . | . . . . . Part Schematics Acquired . | . . . . . Parts Built . | . . . . . Authchips . | . . . . . Time . | . . . . . Total Part Build Rating . | . . . . . Parts Repaired . | . . . . . Time . | . . . . . Parts Recycled . | . . . . . Recycled Matter . | . . . . . Retrieved Matter . | . . . . . Retrieved Components . | . . . . . Parts Scanalyzed . | . . . . . Part Schematics Acquired . | . . . . . Parts Damaged . | . . . . . Bothacking | -11 -10 -10 -9 -9 ------------ Run | Yrd Mat Min Mat Sto Used RIF Installer . | . . . . . Robots Hacked . | . . . . . Non-combat . | . . . . . Combat . | . . . . . Robot Hacks Applied . | . . . . . Relay Couplers Released . | . . . . . Fabnet Peak Effective % . | . . . . . Robots Rewired . | . . . . . Allies Hacked . | . . . . . Hacks Repelled . | . . . . . Allies | -11 -10 -10 -9 -9 -------- Run | Yrd Mat Min Mat Sto Total Allies 1 | . . 1 . . Largest Group 1 | . . 1 . . Highest-Rated Group 31 | . . 31 . . Highest-Rated Ally 31 | . . 31 . . Total Orders . | . . . . . Ally Attacks 5 | . . 5 . . Total Damage 82 | . . 82 . . Kills . | . . . . . Allies Corrupted . | . . . . . Allies Melted . | . . . . . Intel | -11 -10 -10 -9 -9 ------- Run | Yrd Mat Min Mat Sto Active Infowar (turns) 116 | . 116 . . . Terrain 116 | . 116 . . . Robot Analysis Total . | . . . . . Derelict Logs Recovered 2 | . . 2 . . Drone Launches . | . . . . . Drone Recoveries . | . . . . . Exploration | -11 -10 -10 -9 -9 ------------- Run | Yrd Mat Min Mat Sto Turns Passed 1280 | 63 225 281 451 260 Spaces Moved 749 | 48 134 199 285 83 Core 14 | 8 . . . 6 Treads . | . . . . . Legs 735 | 40 134 199 285 77 Wheels . | . . . . . Hover . | . . . . . Flight . | . . . . . Fastest Speed 50 | 50 120 120 120 120 Average Speed 122 | 108 120 120 122 144 Slowest Speed 350 | 120 120 120 190 350 Overloaded Moves . | . . . . . Propulsion Burnouts . | . . . . . Robots Hopped . | . . . . . Potential Cave-ins . | . . . . . Cave-ins Triggered . | . . . . . Exploration Rate (%) 27 | 3 37 47 30 18 Regions Visited 4 Branch Regions 2 Pre-discovered Areas . | . . . . . Known Exits Taken 1 | . . . 1 . Unknown Exits Taken 3 | 1 1 1 . . Scrap Searched 1 | . . 1 . . Spaces Dug 1 | . . 1 . . Terrain Destroyed 3 | . . 1 . 2 Melee . | . . . . . Projectile 3 | . . 1 . 2 AOE . | . . . . . Terrain Rammed . | . . . . . Walls Destroyed . | . . . . . Machines Disabled . | . . . . . Actions | -11 -10 -10 -9 -9 --------- Run | Yrd Mat Min Mat Sto Total 913 | 59 158 220 333 143 Wait . | . . . . . Move 746 | 47 133 199 284 83 Hop . | . . . . . Pick Up 26 | 6 1 3 12 4 Fast Attach . | . . . . . Attach 23 | 6 1 2 7 7 Detach . | . . . . . Swap 4 | . . 2 1 1 Drop 4 | . . . 1 3 Fire 102 | . 22 8 27 45 Melee . | . . . . . Ram 3 | . . 3 . . Kick 5 | . 1 3 1 . Crush . | . . . . . Escape Stasis . | . . . . . Rewire . | . . . . . Trap . | . . . . . Miscellaneous . | . . . . . Route ------- -11/Scrapyard -10/Materials -10/Mines -9/Materials (discovered 5 exits: [*Mat x2] / *Min x2 / *Sto) -9/Storage History --------- Turn | Location | Event 2 | -11/Scrapyard | Met Revision 17 34 | -11/Scrapyard | Discovered new exit (range 15) 64 | -11/Scrapyard | Entered Materials 242 | -10/Materials | Core integrity fell below 50% 250 | -10/Materials | Discovered new exit (range 12) 289 | -10/Materials | Entered Mines 292 | -10/Mines | Received a Mining Laser from a helpful Derelict 309 | -10/Mines | Met a Derelict bent on vengeance 319 | -10/Mines | Build established: Mutant 343 | -10/Mines | Learned location of 1 exit from Materials 399 | -10/Mines | Learned 4 Materials zone layouts 453 | -10/Mines | Found a hidden stash of uninstalled traps 534 | -10/Mines | Lost 3 parts (1p2w) 560 | -10/Mines | Discovered new exit (range 7) 569 | -10/Mines | Core integrity fell below 20% 570 | -10/Mines | Entered Materials 570 | -9/Materials | Evolved 2 slots: Propulsion x1, Utility x1 571 | -9/Materials | Identified exit to Storage 572 | -9/Materials | Identified exit to Mines 598 | -9/Materials | Lost 3 parts (2n1w) 717 | -9/Materials | Discovered new exit (range 13) 740 | -9/Materials | Discovered exit to Mines (range 12) 940 | -9/Materials | Discovered new exit (range 15) 1021 | -9/Materials | Entered Storage 1154 | -9/Storage | Garrison activated, responded to threat 1170 | -9/Storage | Core integrity fell below 50% 1281 | -9/Storage | Self-destructed Last Messages --------------- K-01 Serf collects debris. R-06 Scavenger collects Beam Rifle. Imp. Ion Engine destroyed. K-01 Serf collects debris. R-06 Scavenger collects Heat Sink. Imp. Light Cannon destroyed. R-06 Scavenger collects Lgt. Treads. K-01 Serf collects debris. R-06 Scavenger collects Lgt. Armor Plating. K-01 Serf collects debris. Heat Sink melted. Y-45 Defender destroyed. K-01 Serf collects debris. Pulse Rifle destroyed. K-01 Serf collects debris. C-30 ARC bursts open, deploying its payload. S-10 Pest unfolds itself. K-01 Serf collects debris. Knocked back. K-01 Serf collects debris. Map ----- +----------------------------------------------------+ | | | | | | | | | | | | | | | | | | | | | | | | | | | ?????????????????????????????????????????????????? | | ####?????????????????????????????????????????????? | | #?????????????????????????????????????????????? | | "" ###???####?####???????????????????????????????? | | Y" #####?# #???????????????????????????????? | | [ %# #?# "" #???????????????????????????????? | | * # #?# G" #???????????????????????????????? | | # #?# "" #???????????????????????????????? | | # #?# #???????????????????????????????? | | **# ### #######??????????????#??????????? | | %[+ ##T """ # /####+##### % %%#??????????? | | = !#% ### """ *#s% ss !%| % #??????????? | | # ## """ %+!=|*bs @%! % #??????????? | | # ### %#%!=% l %%m% k%%% #??????????? | | #### ### # ####;#####% #??????????? | | ??# #####+###### ###??? ????? ##??????????? | | ??# T #?????? #?????????????????? | | ??# "" #??????? #?????????????????? | | ??# #???????? #?????????????????? | | ??# ####### #???????? #?????????????????? | | ??###+###?????# #?????????#?????????????????? | | ??????????????# #???????????????????????????? | | ??????????????# ##+#???????????????????????????? | | ??????????????# #??????????????????????????????? | | ??????????????# #??????????????????????????????? | | ??????????????? #??????????????????????????????? | | ????????????????? #??????????????????????????????? | | ??????????????????+??????????????????????????????? | | ?????????????????????????????????????????????????? | | ?????????????????????????????????????????????????? | | ?????????????????????????????????????????????????? | | ?????????????????????????????????????????????????? | | ?????????????????????????????????????????????????? | | ?????????????????????????????????????????????????? | | ?????????????????????????????????????????????????? | | ?????????????????????????????????????????????????? | | ?????????????????????????????????????????????????? | +----------------------------------------------------+ Best States ------------- Heat Dissipation 38 Energy Generation 12 Energy Capacity 265 Matter Stores 300 Matter Capacity 300 Sight Range 16 Terrain Scan Range 14 Terrain Scan Density 10 Core Shielding 20 Evasion (%) 55 Targeting Accuracy 5 Item Schematics ----------------- None Robot Schematics ------------------ None Fabricated ------------ Nothing Repaired ---------- Nothing Alien Tech Used ----------------- None Achievements -------------- Close Call Challenges ------------ None Game ------ Seed TractorVariableNeutralizer Manual? 0 Play Time 00:16:41 Cumulative 6.5 hours Start 2025.05.05 @ 23:26:50 End 2025.05.05 @ 23:46:10 Sessions 1 Manual Loads 0 Difficulty Rogue Special Mode None Game No. 12 Rogue 11 Adventurer 0 Explorer 1 Win Type - Total 0 Types 0/0/0/0/0/0/0/0/0/0 Lore% 5 Gallery% 11 Achievement% 13 Wizard Run 0 Options --------- Layout 1 ASCII 0 Keyboard 0 Movement Mouse Keybinds 0 Fullscreen 1 Font 32/SmallcapsGlow Map View 50x35 Zoom Use 0% Tactical HUD 0 Map Filters NONE Filters NONE Steam 1 RUN: 10de24e6-4ac8-452e-b3ad-6ac92f3ac3d2